[Event "Lviv Tradition June 2018"]
[Site "Lviv"]
[Date "2018.06.14"]
[Round "6"]
[White "Frolov, Artur"]
[Black "Ozenir, Ekin Baris"]
[Result "0-1"]
[ECO "B00"]
[WhiteElo "2406"]
[BlackElo "2320"]
[Annotator "NA"]
[PlyCount "89"]
[EventDate "2018.??.??"]
[EventType "schev"]
[EventCountry "UKR"]
[SourceTitle "playchess.com"]
[Source "ChessBase"]
[SourceQuality "1"]
[TimeControl "5400+30"]

1. e4 {[%emt 0:00:00]} Nc6 {[%emt 0:00:16]} 2. d4 {[%emt 0:00:00]} d5 {[%emt 0:00:04]} 3. e5 {[%emt 0:02:52]} Bf5 {[%emt 0:00:21]} 4. c3 {[%emt 0:10:28]} f6 {[%emt 0:01:05]} 5. f4 {[%emt 0:00:30]} Nh6 {[%emt 0:01:51]} 6. Be2 {[%emt 0:10:20]} Qd7 {[%emt 0:07:05]} 7. Nf3 {[%emt 0:03:20]} e6 {[%emt 0:02:21]} 8. b4 {[%emt 0:05:05]} Be7 {[%emt 0:08:19]} 9. O-O {[%emt 0:00:16]} Bg6 {[%emt 0:04:56]} 10. a4 {[%emt 0:04:54]} O-O {[%emt 0:03:45]} 11. Nbd2 {[%emt 0:00:36]} fxe5 $16 {[%emt 0:07:36]} 12. b5 {[%emt 0:20:56]} Nd8 {[%emt 0:05:37]} 13. Nxe5 {[%emt 0:00:42]} Qe8 {[%emt 0:01:16]} 14. Nxg6 {[%emt 0:05:12]} hxg6 {[%emt 0:04:43]} 15. Nf3 {[%emt 0:00:54]} Bd6 {[%emt 0:04:02]} 16. g3 {[%emt 0:02:41]} Nf5 {[%emt 0:04:39]} 17. Bd3 {[%emt 0:02:06]} c5 {[%emt 0:05:22]} 18. bxc6 {[%emt 0:03:46]} Nxc6 {[%emt 0:01:32]} 19. Qe2 {[%emt 0:01:27]} Qd7 {[%emt 0:05:58]} 20. Ba3 {[%emt 0:06:15]} Bxa3 {[%emt 0:05:04]} 21. Rxa3 {[%emt 0:00:01]} a6 {[%emt 0:00:17]} 22. Ra2 {[%emt 0:01:24]} Rae8 {[%emt 0:02:39]} 23. g4 {[%emt 0:01:54]} Nfe7 {[%emt 0:01:19]} 24. Ng5 {[%emt 0:00:12]} Rf6 {[%emt 0:02:25]} 25. Qg2 {[%emt 0:02:53]} Nd8 {[%emt 0:06:39]} 26. Qh3 {[%emt 0:01:03]} Nf7 {[%emt 0:00:47]} 27. Nh7 {[%emt 0:01:10]} Qc7 {[%emt 0:02:46]} 28. Nxf6+ {[%emt 0:00:16]} gxf6 {[%emt 0:00:01]} 29. Rc2 {[%emt 0:00:38]} Kg7 {[%emt 0:00:43]} 30. Qe3 {[%emt 0:00:46]} Qd6 {[%emt 0:01:17]} 31. Re2 {[%emt 0:03:36]} Nd8 {[%emt 0:01:01]} 32. g5 {[%emt 0:00:41]} f5 {[%emt 0:00:16]} 33. Qe5+ {[%emt 0:01:10]} Qxe5 {[%emt 0:00:07]} 34. dxe5 {[%emt 0:00:18]} Ndc6 {[%emt 0:00:38]} 35. Rb1 {[%emt 0:01:15]} Na5 {[%emt 0:00:37]} 36. Reb2 {[%emt 0:02:09]} Rc8 {[%emt 0:00:53]} 37. Rxb7 {[%emt 0:00:33]} Nxb7 {[%emt 0:00:05]} 38. Rxb7 {[%emt 0:00:02]} Kf7 {[%emt 0:00:20]} 39. Bxa6 {[%emt 0:00:12]} Rxc3 {[%emt 0:00:05]} 40. Bb5 Ra3 {[%emt 0:02:15]} 41. h4 {[%emt 0:01:32]} d4 42. h5 {[%emt 0:01:19]} d3 {[%emt 0:02:48]} 43. hxg6+ {[%emt 0:00:23]} Kxg6 {[%emt 0:00:14]} 44. Rxe7 {[%emt 0:00:06]} d2 {[%emt 0:00:12]} 45. Be8# {[%emt 0:00:06]} 0-1

[Event "Lviv Tradition June 2018"]
[Site "Lviv"]
[Date "2018.06.14"]
[Round "6"]
[White "Anwesh, Upadhyaya"]
[Black "Tanriverdi, Enes"]
[Result "1-0"]
[ECO "A00"]
[WhiteElo "2375"]
[BlackElo "2281"]
[Annotator "NA"]
[PlyCount "63"]
[EventDate "2018.??.??"]
[EventType "schev"]
[EventCountry "UKR"]
[SourceTitle "playchess.com"]
[Source "ChessBase"]
[SourceQuality "1"]
[TimeControl "5400+30"]

1. g3 {[%emt 0:00:05]} Nf6 {[%emt 0:00:56]} 2. Bg2 {[%emt 0:00:09]} g6 {[%emt 0:00:09]} 3. c4 {[%emt 0:01:59]} Bg7 {[%emt 0:00:12]} 4. Nc3 {[%emt 0:00:06]} O-O {[%emt 0:00:27]} 5. e4 {[%emt 0:00:11]} d6 {[%emt 0:00:41]} 6. Nge2 {[%emt 0:00:04]} c5 {[%emt 0:00:59]} 7. O-O {[%emt 0:00:10]} Nc6 {[%emt 0:00:04]} 8. d3 {[%emt 0:00:03]} a6 {[%emt 0:04:29]} 9. a3 {[%emt 0:02:26]} Rb8 {[%emt 0:00:57]} 10. Rb1 $11 {[%emt 0:00:19]} b5 {[%emt 0:01:22]} 11. cxb5 {[%emt 0:00:06]} axb5 {[%emt 0:00:01]} 12. b4 {[%emt 0:00:08]} cxb4 {[%emt 0:01:35]} 13. axb4 {[%emt 0:00:08]} e5 {[%emt 0:17:01]} 14. h3 {[%emt 0:01:17]} Re8 {[%emt 0:06:57]} 15. Bg5 {[%emt 0:07:28]} h6 {[%emt 0:01:14]} 16. Be3 {[%emt 0:00:02]} Be6 {[%emt 0:16:41]} 17. f4 {[%emt 0:19:26]} d5 {[%emt 0:01:18]} 18. fxe5 {[%emt 0:09:02]} Nxe5 {[%emt 0:00:09]} 19. Bf4 {[%emt 0:00:11]} Nh5 {[%emt 0:02:41]} 20. exd5 {[%emt 0:02:11]} Nxf4 {[%emt 0:00:44]} 21. gxf4 {[%emt 0:02:04]} Nxd3 {[%emt 0:01:25]} 22. Qxd3 {[%emt 0:05:35]} Bf5 {[%emt 0:00:07]} 23. Ne4 {[%emt 0:02:35]} Rc8 {[%emt 0:04:38]} 24. N2g3 {[%emt 0:09:01]} Rc3 {[%emt 0:01:33]} 25. Qxb5 {[%emt 0:03:29]} Bd4+ {[%emt 0:14:52]} 26. Kh2 {[%emt 0:00:01]} Rxe4 {[%emt 0:00:50]} 27. Nxe4 {[%emt 0:03:24]} Bxe4 {[%emt 0:00:37]} 28. Bxe4 {[%emt 0:01:21]} Qh4 {[%emt 0:00:16]} 29. Bg2 {[%emt 0:04:24]} Qg3+ {[%emt 0:01:31]} 30. Kh1 {[%emt 0:00:04]} Rc2 {[%emt 0:01:04]} 31. Qe8+ {[%emt 0:00:06]} Kg7 {[%emt 0:00:04]} 32. Qe4 {[%emt 0:00:07]} 1-0

[Event "Lviv Tradition June 2018"]
[Site "Lviv"]
[Date "2018.06.14"]
[Round "6"]
[White "Sabuk, Piotr"]
[Black "Dedebas, Emre Emin"]
[Result "1/2-1/2"]
[ECO "C84"]
[WhiteElo "2369"]
[BlackElo "2336"]
[Annotator "NA"]
[PlyCount "63"]
[EventDate "2018.??.??"]
[EventType "schev"]
[EventCountry "UKR"]
[SourceTitle "playchess.com"]
[Source "ChessBase"]
[SourceQuality "1"]
[TimeControl "5400+30"]

1. e4 {[%emt 0:00:00]} e5 {[%emt 0:00:35]} 2. Nf3 {[%emt 0:00:00]} Nc6 {[%emt 0:00:05]} 3. Bb5 {[%emt 0:00:00]} a6 {[%emt 0:02:48]} 4. Ba4 {[%emt 0:00:00]} Nf6 {[%emt 0:00:06]} 5. O-O {[%emt 0:00:06]} Be7 {[%emt 0:01:37]} 6. d3 {[%emt 0:00:45]} b5 {[%emt 0:00:54]} 7. Bb3 {[%emt 0:00:02]} d6 {[%emt 0:00:10]} 8. a3 {[%emt 0:00:36]} O-O {[%emt 0:02:58]} 9. Nc3 {[%emt 0:00:22]} Bb7 {[%emt 0:02:35]} 10. Re1 {[%emt 0:03:33]} Qd7 {[%emt 0:00:28]} 11. Bd2 {[%emt 0:14:55]} Rfe8 $11 {[%emt 0:13:35]} 12. Ng5 {[%emt 0:11:35]} Nd8 {[%emt 0:01:58]} 13. f4 {[%emt 0:03:33]} exf4 {[%emt 0:01:55]} 14. Nh3 {[%emt 0:07:51]} d5 {[%emt 0:27:45]} 15. Nxd5 {[%emt 0:05:45]} Nxd5 {[%emt 0:08:31]} 16. Bxd5 {[%emt 0:08:30]} Bxd5 {[%emt 0:01:04]} 17. exd5 {[%emt 0:00:10]} Bc5+ {[%emt 0:07:17]} 18. Kh1 {[%emt 0:03:02]} Rxe1+ {[%emt 0:00:08]} 19. Bxe1 {[%emt 0:02:06]} Qxd5 {[%emt 0:01:45]} 20. Nxf4 {[%emt 0:02:04]} Qd4 {[%emt 0:01:34]} 21. Ne2 {[%emt 0:00:45]} Qd7 {[%emt 0:00:48]} 22. Bc3 {[%emt 0:05:18]} Ne6 {[%emt 0:00:51]} 23. Qd2 {[%emt 0:06:36]} Re8 {[%emt 0:05:59]} 24. Re1 {[%emt 0:03:38]} Bd6 {[%emt 0:01:39]} 25. Nd4 {[%emt 0:05:06]} Nxd4 {[%emt 0:00:32]} 26. Bxd4 {[%emt 0:01:00]} Rxe1+ {[%emt 0:00:12]} 27. Qxe1 {[%emt 0:00:38]} Qe7 {[%emt 0:01:58]} 28. Qxe7 {[%emt 0:03:37]} Bxe7 {[%emt 0:00:06]} 29. Be5 {[%emt 0:00:48]} c6 {[%emt 0:00:24]} 30. g4 {[%emt 0:00:41]} f6 {[%emt 0:00:09]} 31. Bc3 {[%emt 0:00:29]} Kf7 {[%emt 0:00:11]} 32. Kg2 1/2-1/2

[Event "Lviv Tradition June 2018"]
[Site "Lviv"]
[Date "2018.06.14"]
[Round "6"]
[White "Shkuran, Danylo"]
[Black "Can, Isik"]
[Result "1-0"]
[ECO "A06"]
[WhiteElo "2368"]
[BlackElo "2396"]
[Annotator "NA"]
[PlyCount "57"]
[EventDate "2018.??.??"]
[EventType "schev"]
[EventCountry "UKR"]
[SourceTitle "playchess.com"]
[Source "ChessBase"]
[SourceQuality "1"]
[TimeControl "5400+30"]

1. Nf3 {[%emt 0:00:00]} d5 {[%emt 0:02:26]} 2. g3 {[%emt 0:00:00]} Nf6 {[%emt 0:00:04]} 3. Bg2 {[%emt 0:00:00]} Bf5 {[%emt 0:00:11]} 4. d3 {[%emt 0:00:10]} c6 {[%emt 0:00:15]} 5. O-O {[%emt 0:00:13]} e6 {[%emt 0:00:05]} 6. Nbd2 {[%emt 0:00:18]} Be7 {[%emt 0:00:13]} 7. Qe1 {[%emt 0:00:41]} h6 {[%emt 0:00:05]} 8. e4 {[%emt 0:00:34]} Bh7 {[%emt 0:00:01]} 9. Qe2 {[%emt 0:00:15]} O-O {[%emt 0:00:06]} 10. b3 {[%emt 0:00:37]} a5 {[%emt 0:00:03]} 11. a3 {[%emt 0:00:24]} Na6 {[%emt 0:00:43]} 12. Bb2 {[%emt 0:00:56]} Nc5 {[%emt 0:07:43]} 13. Ne5 {[%emt 0:01:28]} Qb6 {[%emt 0:01:08]} 14. Rab1 {[%emt 0:01:25]} Rfd8 {[%emt 0:14:47]} 15. Kh1 {[%emt 0:02:47]} Qa6 {[%emt 0:14:25]} 16. Qe3 {[%emt 0:02:47]} Nfd7 {[%emt 0:05:44]} 17. Nxd7 {[%emt 0:22:51]} Rxd7 {[%emt 0:01:20]} 18. Bd4 {[%emt 0:38:46]} b6 {[%emt 0:06:38]} 19. b4 {[%emt 0:05:51]} Na4 {[%emt 0:09:11]} 20. exd5 {[%emt 0:05:38]} exd5 {[%emt 0:12:56]} 21. Nf3 {[%emt 0:00:56]} Bd6 {[%emt 0:03:50]} 22. Bxg7 {[%emt 0:06:22]} Kxg7 {[%emt 0:03:35]} 23. Qd4+ {[%emt 0:00:06]} Kf8 {[%emt 0:00:19]} 24. Qh8+ {[%emt 0:00:52]} Bg8 {[%emt 0:00:19]} 25. Rfe1 {[%emt 0:00:32]} Be7 {[%emt 0:01:23]} 26. Qxh6+ {[%emt 0:00:22]} Ke8 {[%emt 0:00:01]} 27. Ne5 {[%emt 0:04:15]} Rc7 {[%emt 0:07:28]} 28. Qg7 {[%emt 0:00:18]} Bf8 {[%emt 0:00:07]} 29. Ng6+ {[%emt 0:00:40]} 1-0

[Event "Lviv Tradition June 2018"]
[Site "Lviv"]
[Date "2018.06.15"]
[Round "7"]
[White "Can, Isik"]
[Black "Frolov, Artur"]
[Result "0-1"]
[ECO "C68"]
[WhiteElo "2396"]
[BlackElo "2406"]
[Annotator "NA"]
[PlyCount "53"]
[EventDate "2018.??.??"]
[EventType "schev"]
[EventCountry "UKR"]
[SourceTitle "playchess.com"]
[Source "ChessBase"]
[SourceQuality "1"]
[TimeControl "5400+30"]

1. e4 {[%emt 0:00:00]} e5 {[%emt 0:00:17]} 2. Nf3 {[%emt 0:00:00]} Nc6 {[%emt 0:00:04]} 3. Bb5 {[%emt 0:00:00]} a6 {[%emt 0:00:04]} 4. Bxc6 {[%emt 0:00:00]} dxc6 {[%emt 0:00:06]} 5. O-O {[%emt 0:00:00]} f6 {[%emt 0:06:17]} 6. d4 {[%emt 0:00:00]} exd4 {[%emt 0:00:04]} 7. Nxd4 {[%emt 0:00:00]} Bd6 {[%emt 0:05:01]} 8. Qh5+ {[%emt 0:00:10]} g6 {[%emt 0:00:37]} 9. Qf3 {[%emt 0:00:04]} h5 {[%emt 0:18:27]} 10. Qc3 {[%emt 0:00:05]} h4 {[%emt 0:09:19]} 11. Nxc6 {[%emt 0:14:12]} bxc6 {[%emt 0:00:57]} 12. Qxc6+ {[%emt 0:01:09]} Bd7 {[%emt 0:00:11]} 13. Qc3 {[%emt 0:00:19]} Qe7 {[%emt 0:02:51]} 14. Nd2 {[%emt 0:02:02]} Qe5 {[%emt 0:00:59]} 15. Qxe5+ {[%emt 0:02:07]} Bxe5 {[%emt 0:00:20]} 16. Nc4 {[%emt 0:02:55]} h3 {[%emt 0:05:48]} 17. g3 {[%emt 0:01:06]} Bd4 {[%emt 0:02:20]} 18. Rd1 {[%emt 0:05:14]} Ba7 {[%emt 0:01:03]} 19. Be3 {[%emt 0:06:37]} Bxe3 {[%emt 0:00:05]} 20. Nxe3 {[%emt 0:00:04]} Ne7 {[%emt 0:00:24]} 21. Rd3 {[%emt 0:01:56]} O-O-O {[%emt 0:05:21]} 22. Ra3 {[%emt 0:04:58]} Bc6 {[%emt 0:02:09]} 23. Rxa6 {[%emt 0:00:26]} Kb7 {[%emt 0:00:41]} 24. Ra3 {[%emt 0:01:19]} Bxe4 {[%emt 0:00:19]} 25. Re1 {[%emt 0:02:05]} Nc6 {[%emt 0:02:10]} 26. Ng4 {[%emt 0:05:21]} f5 {[%emt 0:00:27]} 27. Rb3+ {[%emt 0:03:12]} 0-1

[Event "Lviv Tradition June 2018"]
[Site "Lviv"]
[Date "2018.06.15"]
[Round "7"]
[White "Dedebas, Emre Emin"]
[Black "Anwesh, Upadhyaya"]
[Result "1/2-1/2"]
[ECO "D45"]
[WhiteElo "2336"]
[BlackElo "2375"]
[Annotator "NA"]
[PlyCount "75"]
[EventDate "2018.??.??"]
[EventType "schev"]
[EventCountry "UKR"]
[SourceTitle "playchess.com"]
[Source "ChessBase"]
[SourceQuality "1"]
[TimeControl "5400+30"]

1. d4 Nf6 {[%emt 0:02:12]} 2. c4 {[%emt 0:00:00]} e6 {[%emt 0:00:02]} 3. Nf3 {[%emt 0:00:00]} d5 {[%emt 0:00:04]} 4. Nc3 {[%emt 0:00:07]} c6 {[%emt 0:00:02]} 5. e3 {[%emt 0:00:05]} Nbd7 {[%emt 0:00:35]} 6. Qc2 {[%emt 0:00:19]} Bd6 {[%emt 0:00:06]} 7. Bd3 {[%emt 0:00:07]} dxc4 {[%emt 0:00:04]} 8. Bxc4 {[%emt 0:00:09]} b5 {[%emt 0:00:01]} 9. Be2 {[%emt 0:00:10]} O-O {[%emt 0:00:24]} 10. O-O {[%emt 0:00:41]} Bb7 {[%emt 0:00:04]} 11. e4 {[%emt 0:02:53]} e5 {[%emt 0:00:12]} 12. dxe5 {[%emt 0:01:32]} Nxe5 {[%emt 0:00:03]} 13. Nd4 {[%emt 0:03:29]} Re8 {[%emt 0:04:24]} 14. Nf5 {[%emt 0:00:28]} Bf8 {[%emt 0:01:37]} 15. Bg5 $14 {[%emt 0:07:35] LiveBook: 5 Games} b4 {[%emt 0:06:11]} 16. Na4 {[%emt 0:09:15]} c5 {[%emt 0:02:52]} 17. f3 {[%emt 0:04:34]} Rc8 {[%emt 0:06:16]} 18. b3 {[%emt 0:04:09]} c4 {[%emt 0:07:59]} 19. bxc4 {[%emt 0:01:57]} Bc6 {[%emt 0:03:02]} 20. Nb2 {[%emt 0:02:53]} Qb6+ {[%emt 0:00:08]} 21. Kh1 {[%emt 0:01:02]} Nfd7 {[%emt 0:01:11]} 22. Rfd1 {[%emt 0:05:04]} Nc5 {[%emt 0:03:05]} 23. Nd4 {[%emt 0:03:14]} Ba8 {[%emt 0:02:03]} 24. Be3 {[%emt 0:01:25]} Qg6 {[%emt 0:03:19]} 25. Bf1 {[%emt 0:01:48]} a5 {[%emt 0:00:09]} 26. Nb3 {[%emt 0:13:51]} Ne6 {[%emt 0:07:51]} 27. c5 {[%emt 0:04:38]} Qh5 {[%emt 0:01:37]} 28. Qf2 {[%emt 0:01:31]} f5 {[%emt 0:01:58]} 29. exf5 {[%emt 0:03:17]} Qxf5 {[%emt 0:00:21]} 30. Nc4 {[%emt 0:01:49]} a4 {[%emt 0:07:27]} 31. Nd4 {[%emt 0:00:31]} Nxd4 {[%emt 0:00:09]} 32. Bxd4 {[%emt 0:00:10]} Nxc4 {[%emt 0:06:07]} 33. Bxc4+ {[%emt 0:00:06]} Kh8 {[%emt 0:00:03]} 34. Re1 {[%emt 0:02:48]} Rxe1+ {[%emt 0:05:11]} 35. Rxe1 {[%emt 0:00:02]} Bd5 {[%emt 0:00:12]} 36. Re5 {[%emt 0:14:24]} Qb1+ {[%emt 0:00:07]} 37. Re1 {[%emt 0:00:03]} Qf5 {[%emt 0:00:12]} 38. Re5 {[%emt 0:07:35]} 1/2-1/2

[Event "Lviv Tradition June 2018"]
[Site "Lviv"]
[Date "2018.06.15"]
[Round "7"]
[White "Akdogan, Alperen"]
[Black "Shkuran, Danylo"]
[Result "1/2-1/2"]
[ECO "D02"]
[WhiteElo "2260"]
[BlackElo "2368"]
[Annotator "NA"]
[PlyCount "61"]
[EventDate "2018.??.??"]
[EventType "schev"]
[EventCountry "UKR"]
[SourceTitle "playchess.com"]
[Source "ChessBase"]
[SourceQuality "1"]
[TimeControl "5400+30"]

1. d4 {[%emt 0:00:00]} d5 {[%emt 0:00:09]} 2. Nf3 {[%emt 0:00:00]} Nf6 {[%emt 0:00:05]} 3. c4 {[%emt 0:00:00]} c6 {[%emt 0:00:07]} 4. Qc2 {[%emt 0:00:03]} Bg4 {[%emt 0:03:39]} 5. Ne5 {[%emt 0:00:46]} Be6 {[%emt 0:01:15]} 6. e3 {[%emt 0:05:48]} Nbd7 {[%emt 0:00:51]} 7. cxd5 $11 {[%emt 0:10:19]} cxd5 {[%emt 0:01:30]} 8. Nxd7 {[%emt 0:00:37]} Bxd7 {[%emt 0:02:24]} 9. Nc3 {[%emt 0:01:07]} Qb6 {[%emt 0:01:52]} 10. Bd3 {[%emt 0:01:38]} Rc8 {[%emt 0:02:27]} 11. O-O {[%emt 0:01:34]} e6 {[%emt 0:03:25]} 12. Bd2 {[%emt 0:10:04]} Bd6 {[%emt 0:09:02]} 13. Rfc1 {[%emt 0:16:57]} O-O {[%emt 0:09:26]} 14. Qb3 {[%emt 0:08:51]} Qxb3 {[%emt 0:16:44]} 15. axb3 {[%emt 0:00:13]} Bb8 {[%emt 0:00:51]} 16. Na4 {[%emt 0:07:04]} Rxc1+ {[%emt 0:00:54]} 17. Rxc1 {[%emt 0:00:05]} Rc8 {[%emt 0:00:12]} 18. Nc5 {[%emt 0:03:06]} b6 {[%emt 0:01:15]} 19. Nxd7 {[%emt 0:02:46]} Rxc1+ {[%emt 0:00:47]} 20. Bxc1 {[%emt 0:00:04]} Nxd7 {[%emt 0:00:09]} 21. Bd2 {[%emt 0:00:35]} Bd6 {[%emt 0:00:08]} 22. f3 {[%emt 0:05:25]} f5 {[%emt 0:12:22]} 23. Kf2 {[%emt 0:01:22]} Kf7 {[%emt 0:00:21]} 24. h3 {[%emt 0:00:27]} Nf6 {[%emt 0:01:45]} 25. g4 {[%emt 0:04:44]} g6 {[%emt 0:00:51]} 26. Ke2 {[%emt 0:01:41]} fxg4 {[%emt 0:13:39]} 27. hxg4 {[%emt 0:02:45]} h5 {[%emt 0:00:10]} 28. gxh5 {[%emt 0:00:27]} Nxh5 {[%emt 0:02:12]} 29. f4 {[%emt 0:01:14]} Ng3+ {[%emt 0:00:44]} 30. Kf3 {[%emt 0:00:08]} Nf5 {[%emt 0:00:06]} 31. Kg4 {[%emt 0:00:35]} 1/2-1/2

[Event "Lviv Tradition June 2018"]
[Site "Lviv"]
[Date "2018.06.16"]
[Round "8"]
[White "Frolov, Artur"]
[Black "Akdogan, Alperen"]
[Result "1/2-1/2"]
[ECO "B04"]
[WhiteElo "2406"]
[BlackElo "2260"]
[Annotator "NA"]
[PlyCount "70"]
[EventDate "2018.??.??"]
[EventType "schev"]
[EventCountry "UKR"]
[SourceTitle "playchess.com"]
[Source "ChessBase"]
[SourceQuality "1"]
[TimeControl "5400+30"]

{[%evp 8,70,48,32767,32767,-6,-13,-56,6,10,42,39,55,47,45,34,50,45,44,38,34,38,41,28,2,-22,-14,32767,32767,32767,32767,32767,32767,32767,32767,-43,-37,-39,-41,-51,32767,32767,32767,32767,32767,32767,32767,32767,32767,32767,32767,32767,32767,32767,32767,32767,32767,32767,32767,32767,-47,-43,4,32767,21]} 1. e4 {[%emt 0:00:00]} Nf6 {[%emt 0:00:29]} 2. e5 {[%emt 0:00:00]} Nd5 {[%emt 0:00:04]} 3. d4 {[%emt 0:00:00]} d6 {[%emt 0:00:05]} 4. Nf3 {[%emt 0:00:00]} dxe5 {[%emt 0:00:10]} 5. Nxe5 {[%emt 0:02:04]} c6 {[%emt 0:00:19]} 6. c4 {[%emt 0:06:21]} (6. Be2 $14) 6... Nb4 $1 {[%emt 0:00:19] LiveBook: 79 Games B04: Aljechin-Verteidigung (Moderne Variante)} 7. Nd3 {[%emt 0:11:42]} (7. Be3 $11 Bf5 8. Nd3 e5 9. Nxb4 Bxb4+ 10. Nc3 Qa5 11. Qb3 Na6 12. Be2 exd4 13. Bxd4 O-O-O 14. Rd1 Rxd4 15. Rxd4 {0-1 (37) Nepomniachtchi,I (2714)-Ivanchuk,V (2704) Beijing 2014}) 7... Nxd3+ {[%emt 0:20:35]} (7... e5 $5) 8. Qxd3 {[%emt 0:00:12]} g6 {[%emt 0:02:19]} 9. Be3 {[%emt 0:01:20]} Bf5 {[%emt 0:01:21]} 10. Qd2 {[%emt 0:00:05]} Bg7 {[%emt 0:00:26]} 11. Nc3 {[%emt 0:00:19]} O-O {[%emt 0:01:53]} 12. Be2 {[%emt 0:00:08]} Qa5 $146 {[%emt 0:18:30]} ({Vorgänger:} 12... Na6 13. Bf3 Qc7 14. O-O {0-1 (34) Zychowicz,M (1857)-Gwozdzik,Z (1878) Szklarska Poreba 2017}) 13. O-O {[%emt 0:03:21]} Rd8 {[%emt 0:01:37]} 14. Rfd1 {[%emt 0:12:36]} Nd7 {[%emt 0:04:32]} 15. f3 {[%emt 0:08:47]} Nb6 {[%emt 0:26:14]} 16. Ne4 {[%emt 0:38:27]} Qxd2 {[%emt 0:26:21]} 17. Rxd2 e5 {[%emt 0:02:41]} 18. dxe5 {[%emt 0:06:39]} Rxd2 {[%emt 0:01:34]} 19. Bxd2 {[%emt 0:00:01]} Bxe4 {[%emt 0:00:18]} 20. fxe4 {[%emt 0:00:04]} Bxe5 {[%emt 0:00:06]} 21. Rb1 {[%emt 0:02:31]} Rd8 {[%emt 0:02:09]} 22. Ba5 {[%emt 0:04:56]} Rd4 {[%emt 0:03:38]} 23. b3 {[%emt 0:02:23]} Rxe4 {[%emt 0:06:04]} 24. Bf3 {[%emt 0:00:01]} Bd4+ {[%emt 0:00:52]} 25. Kf1 {[%emt 0:00:01]} Re5 {[%emt 0:00:18]} 26. Bxb6 {[%emt 0:03:39]} Bxb6 {[%emt 0:00:04]} 27. Re1 {[%emt 0:00:17]} Be3 {[%emt 0:00:04]} 28. Rd1 {[%emt 0:01:27]} Re7 {[%emt 0:00:09]} 29. b4 {[%emt 0:00:42]} Kg7 {[%emt 0:04:54]} 30. a4 {[%emt 0:00:06]} f5 {[%emt 0:00:58]} 31. a5 {[%emt 0:01:16]} a6 {[%emt 0:01:22]} 32. b5 {[%emt 0:00:32]} cxb5 {[%emt 0:00:30]} 33. cxb5 {[%emt 0:00:01]} axb5 {[%emt 0:01:06]} 34. Rb1 {[%emt 0:00:07]} g5 {[%emt 0:00:56]} 35. Rxb5 {[%emt 0:00:15]} Kf6 $11 {[%emt 0:00:21]} 1/2-1/2

[Event "Lviv Tradition June 2018"]
[Site "Lviv"]
[Date "2018.06.16"]
[Round "8"]
[White "Anwesh, Upadhyaya"]
[Black "Ozenir, Ekin Baris"]
[Result "1/2-1/2"]
[ECO "E01"]
[WhiteElo "2375"]
[BlackElo "2320"]
[Annotator "NA"]
[PlyCount "103"]
[EventDate "2018.??.??"]
[EventType "schev"]
[EventCountry "UKR"]
[SourceTitle "playchess.com"]
[Source "ChessBase"]
[SourceQuality "1"]
[TimeControl "5400+30"]

{[%evp 17,68,15,-3,-17,-9,-13,-10,-18,-13,-39,-18,-26,-19,-35,-16,-37,-36,-51,-27,32767,-60,32767,-115,-133,-123,-135,-129,-134,-148,-148,-123,-147,-136,-178,-77,-84,-85,-109,-85,-79,-50,-67,-85,-96,-93,32767,32767,32767,32767,32767,-38,-106,-65]} 1. d4 {[%emt 0:01:46]} Nf6 {[%emt 0:00:20]} 2. c4 {[%emt 0:00:07]} e6 {[%emt 0:00:38]} 3. g3 {[%emt 0:00:05]} d5 {[%emt 0:01:04]} 4. Bg2 {[%emt 0:00:06]} Bb4+ {[%emt 0:01:11]} 5. Bd2 {[%emt 0:00:08]} Be7 {[%emt 0:00:19]} 6. Nf3 {[%emt 0:00:07]} O-O {[%emt 0:00:32]} 7. O-O {[%emt 0:00:05]} c6 {[%emt 0:00:42]} 8. Na3 {[%emt 0:00:52] E11: Bogo-Indian} b6 {[%emt 0:04:06]} 9. Rc1 {[%emt 0:02:26] LiveBook: 4 Games} Bb7 {[%emt 0:07:14]} 10. Qa4 $146 {[%emt 0:08:16]} ({Predecessor:} 10. Ne5 Nfd7 11. Nd3 a5 12. cxd5 exd5 13. e4 dxe4 14. Bxe4 Nf6 15. Bg2 Bxa3 16. bxa3 {1-0 (58) Martirosyan,H (2544)-Sevian,S (2633) Saint Louis 2017}) 10... Nbd7 {[%emt 0:09:06]} 11. cxd5 {[%emt 0:01:28]} exd5 {[%emt 0:11:09]} 12. Rfd1 {[%emt 0:06:59]} Re8 {[%emt 0:03:53]} 13. e3 {[%emt 0:01:57]} Ne4 {[%emt 0:04:27]} 14. Be1 {[%emt 0:02:38]} Bd6 {[%emt 0:05:21]} 15. Nb1 {[%emt 0:02:49]} Ndf6 {[%emt 0:07:00]} 16. Nc3 {[%emt 0:08:58]} Qe7 {[%emt 0:15:42]} 17. Ne2 {[%emt 0:05:33]} g5 {[%emt 0:07:37]} 18. Rc2 {[%emt 0:02:49]} a5 19. Nc1 {[%emt 0:03:09] [#]} b5 $1 {[%emt 0:06:11]} 20. Qb3 {[%emt 0:00:02]} a4 {[%emt 0:03:27]} 21. Qd3 {[%emt 0:00:08] [#]} b4 $1 22. Qf1 {[%emt 0:04:42] [#]} b3 $1 {[%emt 0:03:35]} 23. axb3 {[%emt 0:00:45]} axb3 {[%emt 0:00:05]} 24. Nxb3 {[%emt 0:00:45]} Ba6 {[%emt 0:00:33]} 25. Rd3 {[%emt 0:00:02]} Bxd3 {[%emt 0:02:50]} (25... g4 $142 26. Nfd2 Bb5) 26. Qxd3 {[%emt 0:00:03]} Qb7 {[%emt 0:00:52]} 27. Bf1 {[%emt 0:02:03]} Qb6 {[%emt 0:01:06]} 28. Nfd2 {[%emt 0:04:36]} Reb8 {[%emt 0:00:49]} 29. f3 {[%emt 0:03:34]} Nxd2 {[%emt 0:00:07]} 30. Nxd2 {[%emt 0:00:01]} h6 {[%emt 0:01:29]} 31. Qf5 {[%emt 0:01:28]} Kg7 {[%emt 0:01:15]} 32. Bf2 {[%emt 0:01:13]} Ra5 {[%emt 0:01:09]} 33. Bd3 {[%emt 0:01:50]} Qc7 {[%emt 0:01:13]} 34. f4 {[%emt 0:06:17]} Qc8 $15 {[%emt 0:01:11]} 35. Qxc8 {[%emt 0:06:15]} Rxc8 {[%emt 0:00:01]} 36. Nb3 {[%emt 0:00:07]} Raa8 {[%emt 0:00:48]} 37. Be1 {[%emt 0:00:12]} Rab8 {[%emt 0:00:44]} 38. Nc5 {[%emt 0:03:18]} Bxc5 {[%emt 0:00:58]} 39. dxc5 {[%emt 0:00:04]} Re8 {[%emt 0:00:42]} 40. fxg5 {[%emt 0:07:07]} hxg5 {[%emt 0:00:18]} 41. Bc3 {[%emt 0:00:06]} Rxe3 {[%emt 0:00:34]} 42. Bf5 {[%emt 0:00:02]} Rxc3 {[%emt 0:00:32]} 43. bxc3 {[%emt 0:01:00]} Rb5 {[%emt 0:00:06]} 44. c4 {[%emt 0:00:07]} Rxc5 {[%emt 0:00:04]} 45. cxd5 {[%emt 0:00:04]} Rxc2 {[%emt 0:00:59]} 46. Bxc2 {[%emt 0:00:01]} Nxd5 {[%emt 0:00:08]} 47. h4 {[%emt 0:00:27]} gxh4 {[%emt 0:00:40]} 48. gxh4 {[%emt 0:00:01]} Ne7 {[%emt 0:00:18]} 49. Kf2 {[%emt 0:01:49]} f5 {[%emt 0:00:31]} 50. Ke3 {[%emt 0:00:39]} Kf6 {[%emt 0:00:12]} 51. Kd4 {[%emt 0:00:07]} Ke6 {[%emt 0:00:59]} 52. h5 {[%emt 0:01:22] Ke5+ Kxe5} 1/2-1/2